fUST/lending_fUST_20240817
["ID","MTS","AMOUNT","RATE_DAILY","PERIOD"]
[335101088,1723824703086,-563.62101491,0.00050136,120]
[335101089,1723824703099,-545.3135127,0.00050136,120]
[335101090,1723824703114,-631.73320128,0.00050136,120]
[335101091,1723824703128,-1145.67725281,0.00050136,120]
[335101092,1723824703141,-901.89081891,0.00050136,120]
[335101093,1723824703155,-10260.76077814,0.00050136,120]
[335101094,1723824703168,-764.96306039,0.00050136,120]
[335101095,1723824703182,-717.15572416,0.00050136,120]
[335101096,1723824703196,-666.76132869,0.00050136,120]
[335101097,1723824703210,-2988.04386807,0.00050136,21]
[335101098,1723824703225,-1202.05456462,0.00050136,120]
[335101099,1723824703243,-637.93251222,0.00050136,120]
[335101100,1723824703415,-2511.63239634,0.00050136,120]
[335101101,1723824703426,-723.60588904,0.00050136,120]
[335101102,1723824703436,-576.30837436,0.00050136,120]
[335101103,1723824703456,-1882.0929892,0.00050136,120]
[335101104,1723824703466,-1029.87337507,0.00050136,120]
[335101105,1723824703475,-1896.05,0.00050136,120]
[335101106,1723824703486,-4569.03193154,0.00050136,120]
[335101107,1723824703495,-947.39693581,0.00050136,120]
[335101108,1723824703506,-797.78015268,0.00050136,120]
[335101109,1723824703516,-975.46654361,0.00050136,120]
[335101110,1723824703526,-815.94432971,0.00050136,120]
[335101111,1723824703537,-1724.06644878,0.00050136,120]
[335101112,1723824703550,-1061.63775306,0.00050136,120]
[335101113,1723824703562,-1147.02024492,0.00050136,120]
[335101114,1723824703572,-848.98367297,0.00050136,120]
[335101115,1723824703581,-979.70266183,0.00050136,120]
[335101116,1723824703591,-894.55362494,0.00050136,120]
[335101117,1723824703600,-645.89765449,0.00050136,120]
[335101118,1723824703610,-641.52311106,0.00050136,120]
[335101119,1723824703620,-1321.41672184,0.00050136,120]
[335101120,1723824703629,-13031.07564045,0.00050136,120]
[335101121,1723824703639,-936.4765277,0.00050136,120]
[335101122,1723824703648,-673.19260345,0.00050136,120]
[335101123,1723824703658,-526.97681664,0.00050136,120]
[335101124,1723824703668,-561.56043573,0.00050136,120]
[335101125,1723824703678,-641.6347965,0.00050136,120]
[335101126,1723824703689,-2425.4101635,0.00050136,120]
[335101127,1723824703699,-1762.77698239,0.00050136,120]
[335101128,1723824703710,-2314.54290933,0.00050136,120]
[335101129,1723824703720,-700.92665212,0.00050136,120]
[335101130,1723824703730,-666.52335476,0.00050136,120]
[335101131,1723824703740,-1019.8231143,0.00050136,120]
[335101132,1723824703750,-665.16133205,0.00050136,120]
[335101133,1723824703760,-839.434321,0.00050136,120]
[335101134,1723824703769,-4725.62455057,0.00050136,120]
[335101135,1723824703778,-567.566813,0.00050136,120]
[335101136,1723824703788,-833.77793103,0.00050136,120]
[335101137,1723824703798,-1124.95772237,0.00050136,120]
[335101138,1723824703808,-616.52596077,0.00050136,120]
[335101139,1723824703818,-628.62926544,0.00050136,120]
[335101140,1723824703828,-519.19128378,0.00050136,120]
[335101141,1723824703838,-1015.44193466,0.00050136,120]
[335101142,1723824703848,-707.67682968,0.00050136,120]
[335101143,1723824703859,-6729.47290007,0.00050136,120]
[335101144,1723824703868,-152.55293162,0.00050239,77]
[335101145,1723824703879,-500.0,0.000503,60]
[335101146,1723824703889,-1000.0,0.000506,60]
[335101147,1723824703900,-151.0,0.00050712,120]
[335101148,1723824703910,-1396.76273472,0.00050846,2]
[335101149,1723824703920,-1413.0,0.00050867,120]
[335101150,1723824703930,-1000.0,0.000509,60]
[335101151,1723824703941,-151.0,0.00050959,120]
[335101152,1723824703951,-554.21,0.00051,80]
[335101153,1723824703961,-150.0,0.00051,7]
[335101154,1723824703971,-150.0,0.00051,90]
[335101155,1723824703981,-3000.0,0.00051,85]
[335101156,1723824703991,-3000.0,0.0005101,85]
[335101157,1723824704001,-3000.0,0.0005102,85]
[335101158,1723824704011,-3000.0,0.0005103,85]
[335101159,1723824704021,-3000.0,0.0005104,85]
[335101160,1723824704030,-3000.0,0.0005105,85]
[335101161,1723824704039,-3000.0,0.0005106,85]
[335101162,1723824704048,-3000.0,0.0005107,85]
[335101163,1723824704058,-5068.491525,0.0005108,85]
[335101164,1723824704068,-1800.0,0.00051233,4]
[335101165,1723824704078,-150.0,0.00052,90]
[335101166,1723824704089,-151.0,0.00052356,120]
[335101167,1723824704100,-200000.0,0.0005244,120]
[335101168,1723824704111,-500.0,0.0005266,2]
[335101169,1723824704129,-892.999999,0.000528,60]
[335101170,1723824704139,-600.005,0.00053,120]
[335101171,1723824704149,-393.93349877,0.00053,120]
[335101172,1723824704159,-600.48260193,0.00053,120]
[335101173,1723824704170,-674.13400513,0.00053,120]
[335101174,1723824704180,-200.0,0.00053,90]
[335101175,1723824704190,-151.0,0.00053014,120]
[335101176,1723824704200,-151.535023,0.000533,120]
[335101177,1723824704211,-500.0,0.000534,120]
[335101178,1723824704222,-1396.76273472,0.000537,2]
[335101179,1723824704234,-151.0,0.00053753,120]
[335101180,1723824704245,-7438982.05619392,0.00053797,30]
[335101181,1723824704256,-1052.1462,0.000538,90]
[335101182,1723824704266,-197.41227969,0.00054,120]
[335101183,1723824704276,-300000.0,0.0005444,120]
[335101184,1723824704287,-2000.0,0.00054617,4]
[335101185,1723824704298,-500.0,0.00054794,120]
[335101186,1723824704309,-500.0,0.00054794,120]
[335101187,1723824704319,-500.0,0.00054794,120]
[335101188,1723824704330,-500.0,0.00054794,120]
[335101189,1723824704340,-500.0,0.00054794,120]
[335101190,1723824704351,-500.0,0.00054794,120]
[335101191,1723824704364,-500.0,0.00054794,120]
[335101192,1723824704375,-500.0,0.00054794,120]
[335101193,1723824704385,-500.0,0.00054794,120]
[335101194,1723824704395,-500.0,0.00054794,120]
[335101195,1723824704405,-500.0,0.00054794,120]
[335101196,1723824704415,-500.0,0.00054794,120]
[335101197,1723824704424,-500.0,0.00054794,120]
[335101198,1723824704433,-500.0,0.00054794,120]
[335101199,1723824704444,-375.96386097,0.00054794,120]
[335101200,1723824704454,-500.0,0.00054794,120]
[335101201,1723824704465,-645.7297446,0.00054794,120]
[335101202,1723824704474,-500.0,0.00054794,120]
[335101203,1723824704484,-500.0,0.00054794,120]
[335101204,1723824704493,-500.0,0.00054794,120]
[335101205,1723824704503,-500.0,0.00054794,120]
[335101206,1723824704512,-500.0,0.00054794,120]
[335101207,1723824704521,-500.0,0.00054794,120]
[335101208,1723824704531,-500.0,0.00054794,120]
[335101209,1723824704541,-500.0,0.00054794,120]
[335101210,1723824704551,-500.0,0.00054794,120]
[335101211,1723824704560,-500.0,0.00054794,120]
[335101212,1723824704570,-500.0,0.00054794,120]
[335101213,1723824704580,-500.0,0.00054794,120]
[335101214,1723824704590,-318.91837246,0.00054794,120]
[335101215,1723824704600,-386.17161824,0.00054795,120]
[335101216,1723824704613,-386.17161824,0.00054795,120]
[335101217,1723824704622,-386.17161824,0.00054795,120]
[335101218,1723824704634,-386.17161824,0.00054795,120]
[335101219,1723824704645,-386.17161824,0.00054795,120]
[335101220,1723824704657,-386.17161824,0.00054795,120]
[335101221,1723824704666,-386.17161824,0.00054795,120]
[335101222,1723824704677,-386.17161824,0.00054795,120]
[335101223,1723824704686,-386.17161824,0.00054795,120]
[335101224,1723824704696,-386.17161824,0.00054795,120]
[335101225,1723824704706,-386.17161824,0.00054795,120]
[335101226,1723824704716,-386.17161824,0.00054795,120]
[335101227,1723824704725,-386.17161824,0.00054795,120]
[335101228,1723824704735,-386.17161824,0.00054795,120]
[335101229,1723824704745,-386.17161824,0.00054795,120]
[335101230,1723824704755,-386.17161824,0.00054795,120]
[335101231,1723824704765,-386.17161824,0.00054795,120]
[335101232,1723824704776,-386.17161824,0.00054795,120]
[335101233,1723824704785,-386.17161824,0.00054795,120]
[335101234,1723824704795,-386.67,0.00054795,120]
[335101235,1723824704805,-1544.76147297,0.00054795,120]
[335101236,1723824704814,-1544.76147297,0.00054795,120]
[335101237,1723824704823,-1544.76147297,0.00054795,120]
[335101238,1723824704833,-1544.76147297,0.00054795,120]
[335101239,1723824704843,-1544.76147297,0.00054795,120]
[335101240,1723824704855,-1544.76147297,0.00054795,120]
[335101241,1723824704866,-1544.76147297,0.00054795,120]
[335101242,1723824704876,-1544.76147297,0.00054795,120]
[335101243,1723824704886,-1544.76147297,0.00054795,120]
[335101244,1723824704895,-1544.76147297,0.00054795,120]
[335101245,1723824704906,-1544.76147297,0.00054795,120]
[335101246,1723824704915,-1544.76147297,0.00054795,120]
[335101247,1723824704925,-1544.76147297,0.00054795,120]
[335101248,1723824704935,-1544.76147297,0.00054795,120]
[335101249,1723824704945,-1544.76147297,0.00054795,120]
[335101250,1723824704955,-1544.76147297,0.00054795,120]
[335101251,1723824704964,-1544.76147297,0.00054795,120]
[335101252,1723824704974,-1544.76147297,0.00054795,120]
[335101253,1723824704983,-1544.76147297,0.00054795,120]
[335101254,1723824704993,-1545.26,0.00054795,120]
[335101255,1723824705003,-181.23616143,0.00054795,120]
[335101256,1723824705012,-181.23616143,0.00054795,120]
[335101257,1723824705021,-181.73,0.00054795,120]
[335101258,1723824705031,-155.45242408,0.00054795,120]
[335101259,1723824705041,-155.45242408,0.00054795,120]
[335101260,1723824705051,-155.45242408,0.00054795,120]
[335101261,1723824705060,-155.45242408,0.00054795,120]
[335101262,1723824705070,-155.45242408,0.00054795,120]
[335101263,1723824705080,-155.45242408,0.00054795,120]
[335101264,1723824705089,-155.45242408,0.00054795,120]
[335101265,1723824705099,-155.45242408,0.00054795,120]
[335101266,1723824705110,-155.45242408,0.00054795,120]
[335101267,1723824705119,-155.45242408,0.00054795,120]
[335101268,1723824705129,-155.45242408,0.00054795,120]
[335101269,1723824705140,-155.45242408,0.00054795,120]
[335101270,1723824705149,-155.45242408,0.00054795,120]
[335101271,1723824705159,-155.95,0.00054795,120]
[335101272,1723824705169,-224.77903114,0.00054795,120]
[335101273,1723824705179,-224.77903114,0.00054795,120]
[335101274,1723824705189,-224.77903114,0.00054795,120]
[335101275,1723824705198,-224.77903114,0.00054795,120]
[335101276,1723824705208,-224.77903114,0.00054795,120]
[335101277,1723824705217,-224.77903114,0.00054795,120]
[335101278,1723824705227,-224.77903114,0.00054795,120]
[335101279,1723824705240,-224.77903114,0.00054795,120]
[335101280,1723824705250,-224.77903114,0.00054795,120]
[335101281,1723824705259,-224.77903114,0.00054795,120]
[335101282,1723824705269,-224.77903114,0.00054795,120]
[335101283,1723824705278,-224.77903114,0.00054795,120]
[335101284,1723824705288,-224.77903114,0.00054795,120]
[335101285,1723824705299,-224.77903114,0.00054795,120]
[335101286,1723824705310,-224.77903114,0.00054795,120]
[335101287,1723824705321,-224.77903114,0.00054795,120]
[335101288,1723824705332,-224.77903114,0.00054795,120]
[335101289,1723824705341,-224.77903114,0.00054795,120]
[335101290,1723824705351,-224.77903114,0.00054795,120]
[335101291,1723824705362,-225.27,0.00054795,120]
[335101292,1723824705372,-899.19112456,0.00054795,120]
[335101293,1723824705382,-899.19112456,0.00054795,120]
[335101294,1723824705392,-899.19112456,0.00054795,120]
[335101295,1723824705403,-899.19112456,0.00054795,120]
[335101296,1723824705412,-899.19112456,0.00054795,120]
[335101297,1723824705421,-899.19112456,0.00054795,120]
[335101298,1723824705431,-899.19112456,0.00054795,120]
[335101299,1723824705440,-899.19112456,0.00054795,120]
[335101300,1723824705449,-899.19112456,0.00054795,120]
[335101301,1723824705459,-899.19112456,0.00054795,120]
[335101302,1723824705469,-899.19112456,0.00054795,120]
[335101303,1723824705479,-899.19112456,0.00054795,120]
[335101304,1723824705490,-899.19112456,0.00054795,120]
[335101305,1723824705499,-899.19112456,0.00054795,120]
[335101306,1723824705510,-899.19112456,0.00054795,120]
[335101307,1723824705519,-899.19112456,0.00054795,120]
[335101308,1723824705529,-899.19112456,0.00054795,120]
[335101309,1723824705540,-899.19112456,0.00054795,120]
[335101310,1723824705549,-899.19112456,0.00054795,120]
[335101311,1723824705665,-899.69,0.00054795,120]
[335101312,1723824705676,-581.67593645,0.0005484,120]
[335101313,1723824705686,-300.0,0.00055,14]
[335101314,1723824705696,-5998.85595422,0.00055,120]
[335101315,1723824705705,-514.0,0.00055,120]
[335101316,1723824705715,-60676.72769576,0.00055,30]
[335101317,1723824705724,-154.90093462,0.00055,120]
[335101318,1723824705734,-151.0,0.00055151,120]
[335101319,1723824705745,-151.0,0.00055315,120]
[335101320,1723824705754,-150.0,0.00056,120]
[335101321,1723824705764,-151.0,0.00056548,120]
[335101322,1723824705773,-150.0,0.00057,120]
[335101323,1723824705783,-151.0,0.00057616,120]
[335101324,1723824705794,-500.0,0.00057621,120]
[335101325,1723824705804,-151.0,0.00057945,120]
[335101326,1723824705813,-200.0,0.00058,120]
[335101327,1723824705823,-2200.0,0.00058116,4]
[335101328,1723824705833,-397.95,0.00059332,30]
[335101329,1723824705843,-151.0,0.00059342,120]
[335101330,1723824705852,-151.0,0.00059918,120]
[335101331,1723824705862,-500.0,0.0006,120]
[335101332,1723824705871,-1000.0,0.0006,2]
[335101333,1723824705881,-5180.0,0.0006,120]
[335101334,1723824705891,-686.25772817,0.0006,12]
[335101335,1723824705903,-5998.23852358,0.0006,120]
[335101336,1723824705913,-150.0,0.0006,120]
[335101337,1723824705925,-4000.0,0.0006,49]
[335101338,1723824705937,-310.04500375,0.0006,120]
[335101339,1723824705947,-2000.0,0.0006,30]
[335101340,1723824705957,-3605.27,0.0006,30]
[335101341,1723824705968,-1208.12,0.0006,30]
[335101342,1723824705977,-166.492773,0.00060274,2]
[335101343,1723824705987,-151.0,0.0006074,120]
[335101344,1723824705996,-1306.67716699,0.00061,120]
[335101345,1723824706006,-150.0,0.00061,120]
[335101346,1723824706015,-151.0,0.00061619,120]
[335101347,1723824706026,-2400.0,0.00061721,4]
[335101348,1723824706036,-200.0,0.00062,120]
[335101349,1723824706048,-150.0,0.00062,120]
[335101350,1723824706057,-151.0,0.00062137,120]
[335101351,1723824706068,-151.0,0.00062219,120]
[335101352,1723824706077,-500.0,0.00062581,120]
[335101353,1723824706087,-999.5087,0.00063,120]
[335101354,1723824706096,-150.0,0.00063,120]
[335101355,1723824706107,-151.0,0.00063534,120]
[335101356,1723824706121,-561.91750916,0.000638,120]
[335101357,1723824706134,-200.0,0.00064,120]
[335101358,1723824706146,-75229.62,0.00064,30]
[335101359,1723824706156,-260.39492019,0.000644,120]
[335101360,1723824706166,-151.0,0.00064521,120]
[335101361,1723824706176,-151.0,0.00064932,120]
[335101362,1723824706185,-500.0,0.00065,120]
[335101363,1723824706194,-338.6086444,0.00065,20]
[335101364,1723824706204,-5998.23852358,0.00065,120]
[335101365,1723824706214,-2600.0,0.00065426,4]
[335101366,1723824706224,-151.0,0.00066329,120]
[335101367,1723824706235,-151.0,0.00066822,120]
[335101368,1723824706245,-500.0,0.00067542,120]
[335101369,1723824706255,-151.0,0.00067726,120]
[335101370,1723824706265,-200.0,0.00068493,120]
[335101371,1723824706276,-154.77557542,0.00069,7]
[335101372,1723824706286,-3000.0,0.00069,120]
[335101373,1723824706296,-3000.0,0.0006901,120]
[335101374,1723824706306,-3000.0,0.0006902,120]
[335101375,1723824706316,-3000.0,0.0006903,120]
[335101376,1723824706326,-5441.094915,0.0006904,120]
[335101377,1723824706336,-151.0,0.00069123,120]
[335101378,1723824706346,-151.0,0.00069123,120]
[335101379,1723824706358,-2800.0,0.00069225,4]
[335101380,1723824706369,-200.0,0.00069863,120]
[335101381,1723824706378,-210.0,0.0007,120]
[335101382,1723824706388,-6028.0,0.0007,120]
[335101383,1723824706398,-350.0,0.0007,20]
[335101384,1723824706407,-350.0,0.0007,20]
[335101385,1723824706416,-1020.10671538,0.0007,2]
[335101386,1723824706426,-5998.23852358,0.0007,120]
[335101387,1723824706436,-151.0,0.00070521,120]
[335101388,1723824706446,-200.0,0.00071232,120]
[335101389,1723824706456,-151.0,0.00071425,120]
[335101390,1723824706466,-151.0,0.00071918,120]
[335101391,1723824706475,-500.0,0.00072502,120]
[335101392,1723824706485,-200.0,0.00072602,120]
[335101393,1723824706495,-3000.0,0.00073113,4]
[335101394,1723824706505,-151.0,0.00073315,120]
[335101395,1723824706515,-151.0,0.00073726,120]
[335101396,1723824706525,-200.0,0.00073972,120]
[335101397,1723824706535,-5999.08730348,0.00074,120]
[335101398,1723824706544,-151.0,0.00074712,120]
[335101399,1723824706554,-1000.0,0.00075,2]
[335101400,1723824706563,-511.0,0.00075,90]
[335101401,1723824706573,-5998.23852358,0.00075,120]
[335101402,1723824706583,-200.0,0.00075342,120]
[335101403,1723824706592,-6745.10441589,0.00075444,120]
[335101404,1723824706602,-166.492773,0.00075616,120]
[335101405,1723824706613,-151.0,0.00076027,120]
[335101406,1723824706623,-151.0,0.0007611,120]
[335101407,1723824706633,-200.0,0.00076712,120]
[335101408,1723824706643,-9037.3433265,0.000769,120]
[335101409,1723824706653,-3605.27,0.00077,30]
[335101410,1723824706662,-1208.12,0.00077,30]
[335101411,1723824706672,-582.69193479,0.00077085,4]
[335101412,1723824706682,-500.0,0.00077462,120]
[335101413,1723824706691,-151.0,0.00077507,120]
[335101414,1723824706701,-200.0,0.00078082,120]
[335101415,1723824706712,-151.0,0.00078329,120]
[335101416,1723824706721,-151.0,0.00078904,120]
[335101417,1723824706730,-200.0,0.00079452,120]
[335101418,1723824706740,-300.0,0.0008,120]
[335101419,1723824706749,-5181.0,0.0008,120]
[335101420,1723824706759,-663.20666848,0.0008,50]
[335101421,1723824706769,-13821.76816314,0.0008,2]
[335101422,1723824706779,-502.0651504,0.0008,120]
[335101423,1723824706789,-5998.29345498,0.0008,120]
[335101424,1723824706799,-1079.89328462,0.0008,2]
[335101425,1723824706812,-44431.48475957,0.0008,120]
[335101426,1723824706822,-1937.899435,0.0008,120]
[335101427,1723824706831,-151.0,0.00080301,120]
[335101428,1723824706842,-151.0,0.0008063,120]
[335101429,1723824706852,-200.0,0.00080821,120]
[335101430,1723824706864,-75229.62,0.00081,30]
[335101431,1723824706874,-151.0,0.00081699,120]
[335101432,1723824706883,-230.75482831,0.00082191,120]
[335101433,1723824706894,-500.0,0.00082191,120]
[335101434,1723824706904,-500.0,0.00082191,120]
[335101435,1723824706914,-500.0,0.00082191,120]
[335101436,1723824706924,-500.0,0.00082191,120]
[335101437,1723824706934,-500.0,0.00082191,120]
[335101438,1723824706944,-500.0,0.00082191,120]
[335101439,1723824706953,-500.0,0.00082191,120]
[335101440,1723824706963,-500.0,0.00082191,120]
[335101441,1723824706972,-500.0,0.00082191,120]
[335101442,1723824706982,-479.91197981,0.00082191,120]
[335101443,1723824706992,-500.0,0.00082423,120]
[335101444,1723824707002,-151.0,0.00082932,120]
[335101445,1723824707011,-151.0,0.00083096,120]
[335101446,1723824707021,-500000.0,0.0008444,30]
[335101447,1723824707030,-151.0,0.00084493,120]
[335101448,1723824707039,-5998.29345498,0.00085,120]
[335101449,1723824707049,-151.0,0.00085233,120]
[335101450,1723824707059,-151.0,0.0008589,120]
[335101451,1723824707068,-151.0,0.00087288,120]
[335101452,1723824707078,-500.0,0.00087383,120]
[335101453,1723824707088,-151.0,0.00087534,120]
[335101454,1723824707097,-151.0,0.00088685,120]
[335101455,1723824707107,-389.0,0.00089836,120]
[335101456,1723824707118,-1000.0,0.00089999,120]
[335101457,1723824707129,-5018.0,0.0009,120]
[335101458,1723824707139,-5998.29345498,0.0009,120]
[335101459,1723824707148,-859.78656924,0.0009,2]
[335101460,1723824707157,-325.0,0.00090082,120]
[335101461,1723824707167,-166.492773,0.00090959,120]
[335101462,1723824707176,-100000.0,0.00092,120]
[335101463,1723824707186,-500.0,0.00092343,120]
[335101464,1723824707196,-8868.0,0.00093,120]
[335101465,1723824707206,-3605.27,0.00093,60]
[335101466,1723824707215,-1208.12,0.00093,60]
[335101467,1723824707225,-100000.0,0.00094,120]
[335101468,1723824707237,-6061.85840067,0.0009488,60]
[335101469,1723824707246,-2017.25803407,0.000949,120]
[335101470,1723824707256,-5998.29345498,0.00095,120]
[335101471,1723824707266,-516.8,0.00095,90]
[335101472,1723824707277,-500.0,0.00097304,120]
[335101473,1723824707287,-6966.24871619,0.000975,30]
[335101474,1723824707297,-1069.0713199,0.0009863,120]
[335101475,1723824707307,-1000.0,0.00099,2]
[335101476,1723824707316,-166.91,0.00099,120]
[335101477,1723824707327,-410.0,0.00099191,120]
[335101478,1723824707337,-1000.0,0.00099999,120]
[335101479,1723824707346,-200.0,0.001,120]
[335101480,1723824707356,-5000.0,0.001,120]
[335101481,1723824707366,-1118.42112049,0.001,120]
[335101482,1723824707375,-565.77068807,0.001,120]
[335101483,1723824707386,-2498.84679252,0.001,120]
[335101484,1723824707395,-301.54971469,0.001,120]
[335101485,1723824707406,-21799.2312521,0.001,120]
[335101486,1723824707416,-151.0,0.001,120]
[335101487,1723824707425,-151.0,0.001,120]
[335101488,1723824707434,-332.99353542,0.001,120]
[335101489,1723824707444,-239.77338016,0.001,120]
[335101490,1723824707453,-500.0,0.00102264,120]
[335101491,1723824707463,-166.492773,0.00106301,120]
[335101492,1723824707472,-500.0,0.00107224,120]
[335101493,1723824707482,-500.0,0.00112185,120]
[335101494,1723824707492,-500.0,0.00117145,120]
[335101495,1723824707501,-200.0,0.0012,90]
[335101496,1723824707511,-166.492773,0.00121644,120]
[335101497,1723824707520,-500.0,0.00122105,120]
[335101498,1723824707529,-154.49788188,0.00125724,2]
[335101499,1723824707538,-259.2420437,0.00125724,30]
[335101500,1723824707548,-500.0,0.00127066,120]
[335101501,1723824707558,-500.0,0.00132026,120]
[335101502,1723824707567,-166.492773,0.00136986,120]
[335101503,1723824707576,-500.0,0.00136986,120]
[335101504,1723824707586,-198686.1895197,0.0015,120]
[335101505,1723824707697,-352.3876782,0.0015,120]
[335101506,1723824707707,-2498.84679252,0.0015,120]
[335101507,1723824707717,-997.00550162,0.0015,120]
[335101508,1723824707727,-1000.0,0.00150684,7]
[335101509,1723824707737,-1000.0,0.00150684,7]
[335101510,1723824707746,-1000.0,0.00150684,7]
[335101511,1723824707756,-1000.0,0.00150684,7]
[335101512,1723824707765,-1000.0,0.00150684,7]
[335101513,1723824707775,-1000.0,0.00150684,7]
[335101514,1723824707784,-1000.0,0.00150684,7]
[335101515,1723824707794,-1000.0,0.00150684,7]
[335101516,1723824707803,-1000.0,0.00150684,7]
[335101517,1723824707813,-1000.0,0.00150684,7]
[335101518,1723824707822,-1000.0,0.00150684,7]
[335101519,1723824707831,-1000.0,0.00150684,7]
[335101520,1723824707841,-1000.0,0.00150684,7]
[335101521,1723824707851,-1000.0,0.00150684,7]
[335101522,1723824707862,-1000.0,0.00150684,7]
[335101523,1723824707871,-1000.0,0.00150684,7]
[335101524,1723824707881,-974.05012806,0.00150684,7]
[335101525,1723824707890,-400000.0,0.001744,120]
[335101526,1723824707899,-156.73354295,0.001925,120]
[335101527,1723824707909,-8868.0,0.00193,120]
[335101528,1723824707918,-1712.00631023,0.00195,120]
[335101529,1723824707927,-115818.82392,0.00196334,60]
[335101530,1723824707937,-1000.0,0.002,120]
[335101531,1723824707946,-650.0,0.002,120]
[335101532,1723824707955,-1000.0,0.002,120]
[335101533,1723824707964,-200.0,0.002,120]
[335101534,1723824707973,-500.0,0.002,120]
[335101535,1723824707983,-2498.84679252,0.002,120]
[335101536,1723824707993,-200.0,0.002,120]
[335101537,1723824708003,-59919.9450029,0.00225,30]
[335101538,1723824708012,-170.0,0.00244032,120]
[335101539,1723824708022,-2498.84679252,0.0025,120]
[335101540,1723824708031,-500.0,0.0025,120]
[335101541,1723824708040,-1058.36793608,0.0027,120]
[335101542,1723824708050,-1000.0,0.0028,120]
[335101543,1723824708059,-160.58938407,0.002887,120]
[335101544,1723824708068,-10129.49753446,0.00289,120]
[335101545,1723824708078,-1094.0,0.00293,120]
[335101546,1723824708087,-115818.82392,0.00293785,90]
[335101547,1723824708097,-211.26418562,0.00299968,3]
[335101548,1723824708107,-279.41845691,0.00299998,30]
[335101549,1723824708119,-859.76864034,0.003,2]
[335101550,1723824708134,-600.0,0.003,120]
[335101551,1723824708144,-200.0,0.003,120]
[335101552,1723824708154,-174.34987251,0.003,30]
[335101553,1723824708163,-200.0,0.003,120]
[335101554,1723824708173,-2498.84679252,0.003,120]
[335101555,1723824708183,-151.0,0.003232,120]
[335101556,1723824708192,-1473.0337935,0.003498,120]
[335101557,1723824708202,-2502.81830039,0.0035,30]
[335101558,1723824708211,-705.4664116,0.0035,120]
[335101559,1723824708221,-2498.84679252,0.0035,120]
[335101560,1723824708232,-151.0,0.003538,120]
[335101561,1723824708242,-500.0,0.00382,120]
[335101562,1723824708252,-180.28196069,0.003851,120]
[335101563,1723824708261,-115818.82392,0.00397122,120]
[335101564,1723824708272,-500.0,0.00399999,120]
[335101565,1723824708282,-500.0,0.00399999,120]
[335101566,1723824708291,-500.0,0.00399999,120]
[335101567,1723824708301,-190.31516897,0.00399999,120]
[335101568,1723824708311,-500.0,0.00399999,120]
[335101569,1723824708321,-500.0,0.004,120]
[335101570,1723824708331,-482.68945252,0.004,120]
[335101571,1723824708341,-859.76864034,0.004,2]
[335101572,1723824708351,-150.0,0.004,120]
[335101573,1723824708361,-200.0,0.004,120]
[335101574,1723824708371,-2498.84679252,0.004,120]
[335101575,1723824708381,-45911.08860509,0.004,120]
[335101576,1723824708390,-151.0,0.004323,120]
[335101577,1723824708401,-1500.0,0.0044,120]
[335101578,1723824708410,-500.0,0.00442,120]
[335101579,1723824708420,-5000.0,0.0045,90]
[335101580,1723824708430,-2498.84679252,0.0045,120]
[335101581,1723824708440,-181.58977173,0.00469271,120]
[335101582,1723824708451,-151.0,0.00477781,120]
[335101583,1723824708462,-115818.82392,0.0049627,120]
[335101584,1723824708472,-1000.0,0.00499999,120]
[335101585,1723824708483,-31500.0,0.00499999,120]
[335101586,1723824708493,-150.30724291,0.005,120]
[335101587,1723824708503,-450.0,0.005,120]